{"text_format":"1","workbook":"xlsx","n_sheets":4,"sheets":["Начало","Опросный лист","Справочник","О Компании"],"not_rendered":{"charts":0,"images":18,"macros":1,"external_links":0,"defined_names":24,"comments":0,"pivot_tables":0},"unopened":[],"bounds":{"document_bytes":16777216,"sheet_cells":100000,"rows_first":2000,"rows_last":500,"rows_between":2000,"halvings":0,"cell_chars":16384,"cell_head_chars":4096},"cells_cut":0,"cells_raw":0,"read":"whole","date_system":"1900"}

{"sheet":"Начало","index":0,"n_rows":44,"n_cols":14,"rows_kept":44,"cut":false,"hidden":false,"merged":[[14,1,14,23],[8,1,8,23],[9,1,9,23],[16,5,18,18],[20,0,20,23],[22,1,22,23],[41,1,41,23],[43,1,44,23],[5,12,5,15],[6,1,6,2],[11,1,11,23],[12,1,12,23],[13,1,13,23],[35,1,35,23],[24,1,24,23],[26,1,26,23],[36,1,39,7],[36,13,39,23],[31,1,31,23],[27,1,27,23],[28,1,28,23],[29,1,29,23],[33,1,33,23]]}
[]
[]
[null,null,null,"ООО \"Трансформер\""]
[null,null,null,"142105, Россия, Московская обл., г. Подольск, ул. Б. Серпуховская, д. 43, стр. 11, пом. 6"]
[null,null,null,"Телефон: +7 (499) 941-08-55 "]
[null,null,null,"Факс: +7 (499) 941-08-55 "]
[null,null,null,"E-mail: info@transformator.ru"]
[]
[null,"ОПРОСНЫЙ ЛИСТ"]
[null,"МАСЛЯНЫЙ СИЛОВОЙ ТРАНСФОРМАТОР"]
[]
[null,"Мы благодарим Вас за то,  что Вы проявили интерес к продукции бренда \"Трансформер\"."]
[null,"Надеемся, что Вы по достоинству оцените качество и надёжность нашей продукции."]
[null,"Мы позаботились об удобстве нашей совместной работы."]
[null,"Процесс заполнения данного опросного листа (ОЛ) займёт всего несколько минут."]
[]
[null,null,null,null,null,"НАЧАТЬ ЗАПОЛНЕНИЕ"]
[]
[]
[]
["Рекомендации по заполнению. Уважаемые коллеги!"]
[]
[1,"Сделайте, пожалуйста, сразу копию с исходного файла через \"Сохранить как…\" для того, чтобы сохранить незаполненный оригинал ОЛ, т.к. некоторые свойства файла после заполнения стираются."]
[]
[2,"Обратите, пожалуйста, внимание на подсвечивания ячеек для ввода: они меняют свой цвет в зависимости от наличия введённых данных."]
[]
[3,"Правило активности: мы настоятельно рекомендуем заполнять все ячейки, чтобы специалисты               ООО \"Трансформер\" могли как можно точнее сформулировать техническое и ценовое предложение:"]
["-","в случае, если на момент заполнения ОЛ нет данных по какому-либо параметру - укажите \"н/д\";"]
["-","в случае, если какой-либо параметр принципиально не заполняется или нет необходимости в его заполнении - ставьте прочерк;"]
["-","в остальных случаях руководствуйтесь всплывающими подсказками и вариантами выбора, предложенными системой."]
[]
[4,"В случае наличия приложений и ссылок на техническое задание или особые требования - перечислите  их в соответствующем пункте ОЛ и приложите к письму."]
[]
[5,"Перед отправкой заполненного опросного листа рекомендуем сохранить его в неизменяемом формате (например, PDF) или пометить документ, как окончательный. "]
[]
[6,"В случае возникновения вопросов по заполнению ОЛ или по параметрам трансформаторов - вы можете свзяться с менеджерами компании."]
[null,"НАЧАТЬ ЗАПОЛНЕНИЕ",null,null,null,null,null,null,null,null,null,null,null,"ИНФОРМАЦИЯ О ГРУППЕ КОМПАНИЙ \"ТРАНСФОРМЕР"]
[]
[]
[]
[]
[null,"Опросный лист совместим с программой Microsoft Excel, начиная с версии 2003 и не содержит элементов, способных нанести вред оборудованию и данным пользователя."]
[]
[null,"В связи с постоянным расширением номенклатуры и совершенствованием продукции, ООО \"Трансформер\"  оставляет за собой право вносить изменения в исходный файл опросного листа без уведомления."]

{"sheet":"Опросный лист","index":1,"n_rows":92,"n_cols":39,"rows_kept":92,"cut":false,"hidden":false,"merged":[[55,2,58,38],[70,2,70,3],[68,2,68,3],[60,27,60,29],[70,13,70,39],[60,12,60,15],[64,15,64,26],[64,27,64,38],[64,5,64,14],[84,8,84,18],[70,8,70,12],[17,2,17,3],[28,2,28,3],[28,9,28,16],[62,34,62,39],[66,35,66,39],[68,13,68,39],[64,2,64,3],[19,34,19,38],[26,34,26,38],[53,32,53,39],[10,21,10,25],[24,34,24,38],[13,34,13,38],[15,34,15,38],[19,9,19,16],[63,2,63,12],[15,2,15,3],[47,25,47,35],[37,35,37,39],[48,6,48,16],[88,34,88,39],[82,2,82,39],[84,2,84,3],[72,2,72,3],[76,2,76,3],[11,35,11,39],[31,34,31,39],[13,9,13,16],[15,9,15,16],[17,9,17,16],[91,1,91,21],[19,2,19,3],[24,2,24,3],[33,11,34,11],[26,2,26,3],[13,2,13,3],[50,6,50,16],[48,2,48,3],[50,2,50,3],[35,2,35,13],[78,29,78,39],[90,32,91,37],[74,8,74,39],[72,8,72,17],[80,8,80,39],[84,29,84,39],[76,8,76,17],[78,8,78,17],[90,38,91,39],[90,1,90,21],[7,10,7,17],[7,26,7,30],[7,32,7,39],[80,2,80,3],[76,29,76,39],[72,29,72,39],[72,4,72,5],[74,2,74,6],[33,32,34,33],[60,16,60,17],[28,34,28,38],[35,21,35,31],[60,23,60,26],[33,26,34,27],[33,12,34,25],[9,32,9,39],[24,9,24,16],[26,9,26,16],[17,34,17,38],[49,29,49,38]]}
[]
[null,null,null,"ООО \"Трансформер\" "]
[null,null,null,"142105, Россия, Московская обл., г. Подольск, ул. Б. Серпуховская, д. 43, стр. 11, пом. 6"]
[null,null,null,"Телефон: +7 (499) 941-08-55 "]
[null,null,null,"Факс: +7 (499) 941-08-55 "]
[null,null,null,"E-mail: info@transformator.ru"]
[]
[null,null,"ОПРОСНЫЙ ЛИСТ:",null,null,null,null,null,null,"№",null,null,null,null,null,null,null,null,null,null,null,null,null,null,null,null,"№ СЧЕТА",null,null,null,null,"№"]
[]
[null,null,"ТРАНСФОРМАТОР МАСЛЯНЫЙ СИЛОВОЙ",null,null,null,null,null,null,null,null,null,null,null,null,null,null,null,null,null,null,null,null,null,null,{"$f":"IF(AG10<>\"\",\"V\",\">\")","v":">"},"ТИП:"]
[]
[null,1,"Электрические параметры:"]
[]
[null,{"$f":"IF(J14<>\"\",\"V\",\">\")","v":">"},"Мощность, кВА",null,null,null,null,null,null,null,null,null,null,null,null,null,null,null,null,null,null,null,null,null,null,{"$f":"IF(AI14<>\"\",\"V\",\">\")","v":">"},"Напряжение КЗ, %"]
[]
[null,{"$f":"IF(J16<>\"\",\"V\",\">\")","v":">"},"Напряжение ВН, кВ",null,null,null,null,null,null,null,null,null,null,null,null,null,null,null,null,null,null,null,null,null,null,{"$f":"IF(AI16<>\"\",\"V\",\">\")","v":">"},"Регулирование напряжения"]
[]
[null,{"$f":"IF(J18<>\"\",\"V\",\">\")","v":">"},"Напряжение НН, кВ",null,null,null,null,null,null,null,null,null,null,null,null,null,null,null,null,null,null,null,null,null,null,{"$f":"IF(AI18<>\"\",\"V\",\">\")","v":">"},"Глубина регулирования, %"]
[]
[null,{"$f":"IF(J20<>\"\",\"V\",\">\")","v":">"},"Схема и группа соединения:",null,null,null,null,null,null,null,null,null,null,null,null,null,null,null,null,null,null,null,null,null,null,{"$f":"IF(AI20<>\"\",\"V\",\">\")","v":">"},"Частота сети, Гц"]
[]
[]
[null,2,"Конструктивное исполнение:",null,null,null,null,null,null,null,null,null,null,null,null,null,null,null,null,null,null,null,null,null,3,"Климатические особенности:"]
[]
[null,{"$f":"IF(J25<>\"\",\"V\",\">\")","v":">"},"Материал обмоток:",null,null,null,null,null,null,null,null,null,null,null,null,null,null,null,null,null,null,null,null,null,null,{"$f":"IF(AI25<>\"\",\"V\",\">\")","v":">"},"Климатическое исполнение:"]
[]
[null,{"$f":"IF(J27<>\"\",\"V\",\">\")","v":">"},"Степень защиты ВЫВОДОВ",null,null,null,null,null,null,null,null,null,null,null,null,null,null,null,null,null,null,null,null,null,null,{"$f":"IF(AI27<>\"\",\"V\",\">\")","v":">"},"Высота установки, м"]
[]
[null,{"$f":"IF(J29<>\"\",\"V\",\">\")","v":">"},"Тип жидкого диэлектрика",null,null,null,null,null,null,null,null,null,null,null,null,null,null,null,null,null,null,null,null,null,null,{"$f":"IF(AI29<>\"\",\"V\",\">\")","v":">"},"Сейсмостойкость по MSK-64"]
[]
[]
[null,4,"Количество трансформаторов"]
[]
[null,null,null,null,null,null,null,null,null,null,null,{"$f":"IF(AA34=0,\">\",\"V\")","v":">"},"Укажите количество трансформаторов:"]
[]
[]
[]
[null,5,"Визуальное исполнение трансформатора"]
[null,null,{"$f":"IF(AG10<>\"\",\"\",\"Укажите тип трансформаторов\")","v":"Укажите тип трансформаторов"}]
[]
[]
[null,null,null,null,null,null,null,null,null,null,null,null,null,null,null,null,{"$f":"IF(AG35>0,\"+\",\"\")","v":""},{"$f":"IF(AG34>0,\"+\",\"\")","v":""}]
[]
[]
[]
[]
[null,6,"Дополнительные параметры",null,null,null,null,null,null,null,null,null,null,null,null,null,null,null,null,null,null,null,null,null,7,"Дополнительная комплектация:"]
[null,null,null,null,null,null,null,null,null,null,null,null,null,null,null,null,null,null,null,null,null,null,null,null,null,"Необходимое выделить жирным шрифтом или подчеркнуть:"]
[null,{"$f":"IF(G49<>\"\",\"V\",\">\")","v":">"},"Наличие и тип термометра"]
[null,null,null,null,null,null,null,null,null,null,null,null,null,null,null,null,null,null,null,null,null,null,null,null,null,null,"Поворотные катки",null,null,"Мановакуумметр ДА2010"]
[null,{"$f":"IF(G51<>\"\",\"V\",\">\")","v":">"},"Тип упаковки"]
[]
[]
[null,8,"Дополнительные требования к параметрам, условиям работы и комплектации:"]
[]
[]
[]
[]
[]
[]
[null,null,null,"Всего трансформаторов: ",null,null,null,null,null,null,null,null,{"$f":"AA34+AG34","v":0},null,null,null,"шт.",null,null,null,null,null,null,"Тип:",null,null,null,{"$f":"AG10","v":0}]
[]
[null,9,"Требуемые данные по запросу"]
[null,null,"Необходимое выделить жирным шрифтом или подчеркнуть:"]
[null,null,"     Стоимость",null,null,"Условия и сроки поставки",null,null,null,null,null,null,null,null,null,"Техническая спецификация",null,null,null,null,null,null,null,null,null,null,null,"Габаритный чертеж"]
[]
[null,10,"Сведения о клиенте:"]
[]
[null,{"$f":"IF(N69=\"\",\">\",\"V\")","v":">"},"Наименование организации:"]
[]
[null,{"$f":"IF(N71=\"\",\">\",\"V\")","v":">"},"Адрес организации:"]
[]
[null,{"$f":"IF(I73=\"\",\">\",\"V\")","v":">"},"ИНН:",null,null,null,null,null,null,null,null,null,null,null,null,null,null,null,null,null,null,null,null,null,null,{"$f":"IF(AD73=\"\",\">\",\"V\")","v":">"},"КПП:"]
[]
[null,{"$f":"IF(I75=\"\",\">\",\"V\")","v":">"},"Контактное лицо (ФИО), должность:"]
[]
[null,{"$f":"IF(I77=\"\",\">\",\"V\")","v":">"},"Телефон:",null,null,null,null,null,null,null,null,null,null,null,null,null,null,null,null,null,null,null,null,null,null,{"$f":"IF(AD77=\"\",\">\",\"V\")","v":">"},"E-mail:"]
[]
[null,{"$f":"IF(I79=\"\",\">\",\"V\")","v":">"},"Сфера применения трансформатора:",null,null,null,null,null,null,null,null,null,null,null,null,null,null,null,null,null,null,null,null,null,null,{"$f":"IF(AD79=\"\",\">\",\"V\")","v":">"},"Срок поставки:"]
[]
[null,{"$f":"IF(I81=\"\",\">\",\"V\")","v":">"},"Объект поставки:"]
[]
[null,null,"СОГЛАСОВАНО"]
[]
[null,{"$f":"IF(I85=\"\",\">\",\"V\")","v":">"},"Поставщик:",null,null,null,null,null,null,null,null,null,null,null,null,null,null,null,null,null,null,null,null,null,null,{"$f":"IF(AD85=\"\",\">\",\"V\")","v":">"},"Покупатель:"]
[]
[null,null,null,null,null,null,null,null,null,null,null,null,null,"М.П.",null,null,null,null,null,null,null,null,null,null,null,null,null,null,null,null,null,null,null,null,null,null,null,"М.П."]
[]
[null,null,null,null,null,null,null,null,null,null,null,null,null,null,null,null,null,null,null,null,null,null,null,null,null,null,null,null,null,null,null,null,null,null,{"$f":"TODAY()","v":"2023-05-10"}]
[]
[null,"          Опросный лист отправлять по факсу:  +7 (499) 941-08-55 , либо на электронную почту",null,null,null,null,null,null,null,null,null,null,null,null,null,null,null,null,null,null,null,null,"info@transformator.ru",null,null,null,null,null,null,null,null,null,null,null,null,null,null,null,"Версия ОЛ: 3.0.0"]
[null,"С Вами свяжется наш менеджер для обсуждения деталей по заявке."]

{"sheet":"Справочник","index":2,"n_rows":15,"n_cols":2,"rows_kept":15,"cut":false,"hidden":true,"merged":[]}
["Модель","Фото"]
["ТМ"]
["ТМГМШ"]
["ТМГ"]
["ТМГЭ"]
["ОМГ"]
["ТМГФ"]
["ТМН"]
["ТДН"]
["ТД"]
["ТРДН"]
["ТДНС"]
["ТДТН"]
["ТМПНГ"]
["-"]

{"sheet":"О Компании","index":3,"n_rows":10,"n_cols":7,"rows_kept":10,"cut":false,"hidden":false,"merged":[[9,1,9,2],[0,3,0,6],[1,3,1,6],[7,1,7,6],[6,1,6,6],[5,1,5,6],[2,1,2,6],[0,1,1,2],[3,2,3,6]]}
[null,"О КОМПАНИИ",null,"ВЕРНУТЬСЯ К НАЧАЛУ"]
[null,null,null,"ПЕРЕЙТИ К ОПРОСНОМУ ЛИСТУ"]
[]
[null,null,"Завод-изготовитель \"Трансформер\" занимает лидирующие позиции среди российских производителей электротехнического оборудования. По наращиванию производства и темпам модернизации бренд \"Трансформер\"  - один из наиболее динамично развивающихся в отрасли."]
[]
[null,"Сотрудничество \"Трансформер\" с ключевыми российскими предприятиями позволяет эффективно реализовывать правительственную программу импортозамещения и энергосбережения."]
[null,"Разработки компании \"Трансформер\" позволяют уже сейчас производить оборудование, способствующее снижению энергозатрат предприятий."]
[null,"ООО \"Трансформер\" обладает всеми необходимыми ресурсами для возможности реализации проекта строительства подстанции \"под ключ\" с использованием современных решений в минимальные сроки, отвечающей всем требованиям нормативной документации."]
[]
[null,"Производство\nсухих трансформаторов",null,null,"Производство\nреакторного оборудования",null,"Производство силовых \nмасляных трансформаторов"]